bitfinex-derivatives/quotes_BTCF0:USTF0_20250121
["timestamp","ask_amount","ask_price","bid_price","bid_amount"]
[1737456201263,0.04857,103060.0,103050.0,0.48111721]
[1737456201450,0.05825888,103070.0,103060.0,0.04857]
[1737456201756,0.05825888,103070.0,103060.0,0.47511221]
[1737456202553,0.16446391,103080.0,103070.0,0.048566]
[1737456202757,0.16446391,103080.0,103070.0,0.63940821]
[1737456202958,0.02880091,103080.0,103070.0,0.63940821]
[1737456203668,0.001,103080.0,103070.0,0.63940821]
[1737456203854,0.37626873,103090.0,103080.0,0.048561]
[1737456204049,0.37626873,103090.0,103080.0,0.47510321]
[1737456205654,0.05794569,103090.0,103080.0,0.47510321]
[1737456206049,0.05894569,103090.0,103080.0,0.47510321]
[1737456209769,0.05894569,103090.0,103080.0,0.409361]
[1737456210761,0.05894569,103090.0,103080.0,0.048561]
[1737456211963,0.05894569,103090.0,103080.0,0.409361]
[1737456213157,0.05894569,103090.0,103080.0,0.3608]
[1737456213366,0.048561,103080.0,103070.0,0.65698091]
[1737456213573,0.158361,103080.0,103070.0,0.65698091]
[1737456214271,0.158361,103080.0,103070.0,0.60038091]
[1737456214773,0.63900321,103080.0,103070.0,0.23958091]
[1737456215377,0.70474542,103080.0,103070.0,0.067]
[1737456215772,0.63900321,103080.0,103070.0,0.067]
[1737456216081,0.574261,103080.0,103070.0,0.067]
[1737456216379,0.64000321,103080.0,103070.0,0.067]
[1737456217074,0.64000321,103080.0,103050.0,0.93061533]
[1737456217275,0.048566,103070.0,103060.0,0.3608]
[1737456217475,0.048566,103070.0,103060.0,0.47511221]
[1737456218483,0.048566,103070.0,103060.0,0.46447]
[1737456218885,0.048566,103070.0,103060.0,0.3608]
[1737456219087,0.33270496,103080.0,103070.0,0.048566]
[1737456219290,0.33270496,103080.0,103070.0,0.47510821]
[1737456219591,0.33270496,103080.0,103070.0,0.409366]
[1737456220286,0.33270496,103080.0,103070.0,0.3608]
[1737456220488,0.39844717,103080.0,103070.0,0.3608]
[1737456220995,0.33270496,103080.0,103070.0,0.3608]
[1737456222388,0.33270496,103080.0,103060.0,0.409369]
[1737456222584,0.048566,103070.0,103060.0,0.409369]
[1737456222786,0.048566,103070.0,103060.0,0.512329]
[1737456223193,0.11430821,103070.0,103060.0,0.10296]
[1737456223493,0.17150821,103070.0,103060.0,0.10296]
[1737456224100,0.17150821,103070.0,103060.0,0.10396]
[1737456224599,0.17150821,103070.0,103060.0,0.10496]
[1737456225397,0.17150821,103070.0,103060.0,0.002]
[1737456226196,0.53230821,103070.0,103060.0,0.002]
[1737456227594,0.54426958,103070.0,103060.0,0.002]
[1737456227792,0.47852737,103070.0,103060.0,0.002]
[1737456228310,0.54426958,103070.0,103060.0,0.002]
[1737456229590,0.18346958,103070.0,103060.0,0.002]
[1737456229792,0.54426958,103070.0,103060.0,0.002]
[1737456230998,0.86262769,103070.0,103060.0,0.002]
[1737456231794,0.50182769,103070.0,103060.0,0.002]
[1737456232101,0.86262769,103070.0,103060.0,0.002]
[1737456234498,0.68928573,103070.0,103060.0,0.002]
[1737456234896,0.048575,103050.0,103040.0,0.54408021]
[1737456235104,0.048575,103050.0,103040.0,0.409378]
[1737456235398,0.048575,103050.0,103040.0,0.488018]
[1737456235903,0.048575,103050.0,103040.0,0.43944]
[1737456236291,0.049575,103050.0,103040.0,0.44844]
[1737456236897,0.050575,103050.0,103040.0,0.45444]
[1737456237113,0.050575,103050.0,103040.0,0.56876221]
[1737456240494,0.050575,103050.0,103040.0,0.50302]
[1737456240697,0.06227401,103050.0,103040.0,0.50302]
[1737456242107,0.06227401,103050.0,103040.0,0.67560091]
[1737456242302,0.06227401,103050.0,103040.0,0.74134312]
[1737456244304,0.050575,103050.0,103040.0,0.74134312]
[1737456244604,0.050575,103050.0,103040.0,0.67560091]
[1737456245299,0.050575,103050.0,103040.0,0.74134312]
[1737456245701,0.050575,103050.0,103040.0,1.02251286]
[1737456245702,0.002,103050.0,103040.0,1.02251286]
[1737456245909,0.19358715,103060.0,103050.0,0.048575]
[1737456246098,0.19358715,103060.0,103050.0,0.58751721]
[1737456247102,0.19358715,103060.0,103050.0,0.65743721]
[1737456247508,0.19358715,103060.0,103050.0,0.66243721]
[1737456247896,0.19358715,103060.0,103050.0,0.596695]
[1737456248209,0.19358715,103060.0,103050.0,0.598695]
[1737456248416,0.19358715,103060.0,103050.0,0.64968106]
[1737456248806,0.19358715,103060.0,103050.0,0.59318106]
[1737456249110,0.19358715,103060.0,103050.0,0.43772]
[1737456249308,0.25932936,103060.0,103050.0,0.43772]
[1737456249502,0.11431321,103060.0,103050.0,0.84051812]
[1737456249703,0.16751321,103060.0,103050.0,0.84051812]
[1737456250108,1.66751321,103060.0,103050.0,0.40979812]
[1737456250810,0.16751321,103060.0,103050.0,0.40979812]
[1737456251014,0.101771,103060.0,103050.0,0.40979812]
[1737456251310,0.16751321,103060.0,103050.0,0.40979812]
[1737456251706,1.66751321,103060.0,103050.0,0.40979812]
[1737456252512,1.601771,103060.0,103050.0,0.40979812]
[1737456252812,1.66751321,103060.0,103050.0,0.40979812]
[1737456253003,1.84085517,103060.0,103050.0,0.007]
[1737456253800,2.20165517,103060.0,103050.0,0.007]
[1737456255303,2.02831321,103060.0,103050.0,0.007]
[1737456255805,2.09405542,103060.0,103030.0,0.10606524]
[1737456256010,0.06574221,103040.0,103030.0,0.05156524]
[1737456257614,0.04958,103040.0,103030.0,0.05556524]
[1737456258012,0.04958,103040.0,103030.0,0.06056524]
[1737456258218,0.001,103040.0,103030.0,0.53569145]
[1737456258516,0.001,103040.0,103030.0,0.58173856]
[1737456258815,0.002,103040.0,103030.0,0.76031732]
[1737456259922,0.48533428,103060.0,103050.0,0.048575]
[1737456260122,0.48533428,103060.0,103050.0,0.770175]
[1737456260418,0.48533428,103060.0,103050.0,0.46039118]
[1737456260718,0.55107649,103060.0,103050.0,0.3608]
[1737456261121,0.48533428,103060.0,103050.0,0.3608]
[1737456261421,0.48533428,103060.0,103050.0,0.3628]
[1737456261823,0.48533428,103060.0,103050.0,0.3668]
[1737456262422,0.19400301,103060.0,103050.0,0.54037876]
[1737456262825,0.19400301,103060.0,103050.0,1.01549597]
[1737456263030,0.19400301,103060.0,103050.0,1.00077069]
[1737456263322,0.19400301,103060.0,103050.0,0.58895376]
[1737456264020,0.25974522,103060.0,103050.0,0.54037876]
[1737456264717,0.25974522,103060.0,103050.0,0.17957876]
[1737456265522,0.25974522,103060.0,103050.0,0.006]
[1737456266520,0.19400301,103060.0,103050.0,0.006]
[1737456267724,0.19400301,103060.0,103050.0,0.3668]
[1737456268222,0.25974522,103060.0,103050.0,0.4338]
[1737456268427,0.25974522,103060.0,103050.0,0.073]
[1737456268620,0.28883162,103060.0,103050.0,0.073]
[1737456269024,0.22308941,103060.0,103050.0,0.073]
[1737456270022,0.22308941,103060.0,103050.0,0.121575]
[1737456270226,0.22308941,103060.0,103050.0,0.482375]
[1737456270420,0.22308941,103060.0,103050.0,0.415375]
[1737456270619,0.22308941,103060.0,103050.0,0.53941721]
[1737456270828,0.22308941,103060.0,103050.0,0.59043465]
[1737456271417,0.22308941,103060.0,103050.0,0.52469244]
[1737456273523,0.22308941,103060.0,103050.0,0.59043465]
[1737456273715,0.22308941,103060.0,103050.0,0.473675]
[1737456274220,0.22308941,103060.0,103050.0,0.587315]
[1737456276421,0.16489439,103060.0,103050.0,0.76089376]
[1737456276626,0.16489439,103060.0,103050.0,0.71231876]
[1737456278223,0.2306366,103060.0,103050.0,0.71231876]
[1737456278428,0.16489439,103060.0,103050.0,0.71231876]
[1737456280429,0.16489439,103060.0,103050.0,0.59867876]
[1737456280631,0.19397524,103060.0,103050.0,0.4251]
[1737456281433,0.19397524,103060.0,103050.0,0.473675]
[1737456282639,0.25971745,103060.0,103050.0,0.006]
[1737456286239,0.25971745,103060.0,103050.0,0.3668]
[1737456286836,0.62051745,103060.0,103050.0,0.006]
[1737456287137,2.12051745,103060.0,103050.0,0.006]
[1737456287543,2.29503586,103060.0,103050.0,0.006]
[1737456289958,0.048575,103050.0,103020.0,0.4038925]
[1737456290149,0.47512621,103030.0,103010.0,0.86416827]
[1737456290344,0.53423121,103020.0,103010.0,0.86416827]
[1737456290545,0.53423121,103020.0,103010.0,0.87935724]
[1737456291148,1.968489,103020.0,103010.0,0.87935724]
[1737456291453,0.048589,103020.0,103010.0,1.28875124]
[1737456292357,0.048589,103020.0,103010.0,0.409394]
[1737456292548,0.048589,103020.0,103010.0,0.412394]
[1737456293254,0.048589,103020.0,103010.0,0.413394]
[1737456294951,0.05973909,103020.0,103010.0,0.413394]
[1737456295561,0.17292821,103030.0,103020.0,0.048589]
[1737456295854,0.34703985,103030.0,103020.0,0.468689]
[1737456296055,0.28129764,103030.0,103020.0,0.468689]
[1737456296363,0.17411164,103030.0,103020.0,0.53443121]
[1737456296551,0.17411164,103030.0,103020.0,0.58933121]
[1737456298154,0.17411164,103030.0,103020.0,0.72829121]
[1737456298764,0.22269564,103030.0,103020.0,0.72829121]
[1737456299071,0.22269564,103030.0,103020.0,0.662549]
[1737456299362,0.25154106,103030.0,103020.0,0.662549]
[1737456299964,0.31728327,103030.0,103020.0,0.19826]
[1737456300162,1.81728327,103030.0,103020.0,0.19826]
[1737456300466,0.31728327,103030.0,103020.0,0.13896]
[1737456300770,1.81728327,103030.0,103020.0,0.13896]
[1737456300950,2.17808327,103030.0,103020.0,0.13896]
[1737456302560,2.12009554,103030.0,103020.0,0.13896]
[1737456303869,0.62009554,103030.0,103020.0,0.13896]
[1737456304671,0.048589,103020.0,103010.0,0.3608]
[1737456304867,0.11433121,103020.0,103010.0,0.3608]
[1737456305067,0.16943121,103020.0,103010.0,0.3608]
[1737456305570,0.103689,103020.0,103010.0,0.409394]
[1737456305961,0.103689,103020.0,103010.0,0.411394]
[1737456306160,0.103689,103020.0,103010.0,0.414394]
[1737456306976,0.103689,103020.0,103010.0,0.555274]
[1737456307161,0.19355833,103020.0,103010.0,0.555274]
[1737456308476,0.25930054,103020.0,103010.0,0.555274]
[1737456309771,0.19355833,103020.0,103010.0,0.555274]
[1737456310270,0.25930054,103020.0,103010.0,0.555274]
[1737456312573,0.62010054,103020.0,103010.0,0.14588]
[1737456312875,0.25930054,103020.0,103010.0,0.14588]
[1737456313077,0.31530054,103020.0,103010.0,0.16106845]
[1737456315076,0.35546967,103020.0,103010.0,0.14588]
[1737456316076,0.35546967,103020.0,103010.0,0.005]
[1737456316277,0.29946967,103020.0,103010.0,0.02018813]
[1737456316875,0.29946967,103020.0,103010.0,0.053594]
[1737456318977,0.29946967,103020.0,103010.0,0.3658]
[1737456319176,0.3467152,103020.0,103010.0,0.3658]
[1737456319677,0.41245741,103020.0,103010.0,0.005]
[1737456319881,0.3467152,103020.0,103010.0,0.3658]
[1737456320186,0.3467152,103020.0,103010.0,0.005]
[1737456320878,0.3467152,103020.0,103010.0,0.3658]
[1737456321187,0.3467152,103020.0,103010.0,0.414394]
[1737456323776,0.29946967,103020.0,103010.0,0.414394]
[1737456325474,0.29946967,103020.0,103010.0,0.46544797]
[1737456325871,0.23372746,103020.0,103010.0,0.46544797]
[1737456326171,0.23372746,103020.0,103010.0,0.414394]
[1737456326172,0.22270064,103020.0,103010.0,0.414394]
[1737456326383,0.22270064,103020.0,103010.0,0.46545262]
[1737456328076,0.22270064,103020.0,103010.0,0.51597262]
[1737456331784,0.28844285,103020.0,103010.0,0.51597262]
[1737456332376,0.28844285,103020.0,103010.0,0.46737862]
[1737456332776,0.28844285,103020.0,103010.0,0.10657862]
[1737456332981,0.28844285,103020.0,103010.0,0.05552]
[1737456333286,0.34704285,103020.0,103010.0,0.05552]
[1737456333492,0.41278506,103020.0,103010.0,0.05552]
[1737456333982,0.41278506,103020.0,103010.0,0.005]
[1737456335384,0.34704285,103020.0,103010.0,0.005]
[1737456335893,0.41278506,103020.0,103010.0,0.005]
[1737456336082,0.34704285,103020.0,103010.0,0.005]
[1737456338094,0.34704285,103020.0,103010.0,0.003]
[1737456338698,0.34704285,103020.0,103000.0,0.51085247]
[1737456338699,0.048594,103010.0,103000.0,0.51085247]
[1737456338996,0.17473621,103010.0,103000.0,0.56192233]
[1737456339295,0.17473621,103010.0,103000.0,0.10145647]
[1737456339491,0.23293621,103010.0,103000.0,0.10145647]
[1737456339687,0.23293621,103010.0,103000.0,0.10445647]
[1737456339991,0.23293621,103010.0,103000.0,0.105]
[1737456342193,0.41790924,103010.0,103000.0,0.105]
[1737456342893,0.77870924,103010.0,103000.0,0.105]
[1737456343697,0.77870924,103010.0,103000.0,0.12019113]
[1737456345999,2.27870924,103010.0,103000.0,0.12019113]
[1737456346504,2.27870924,103010.0,102980.0,0.34671849]
[1737456346505,0.048603,102990.0,102980.0,0.34671849]
[1737456346694,0.11434521,102990.0,102980.0,0.34671849]
[1737456347097,0.11434521,102990.0,102980.0,0.0573]
[1737456347496,0.17134521,102990.0,102980.0,0.0573]
[1737456348295,0.17234521,102990.0,102980.0,0.0573]
[1737456349203,0.17234521,102990.0,102980.0,0.4181]
[1737456349406,0.17334521,102990.0,102980.0,0.4201]
[1737456349606,0.107603,102990.0,102980.0,0.468708]
[1737456349797,0.002,102990.0,102980.0,0.53445021]
[1737456350105,0.05945739,103010.0,103000.0,0.048599]
[1737456350407,0.05945739,103010.0,103000.0,0.409399]
[1737456350602,0.75546552,103020.0,103000.0,0.42654221]
[1737456350803,0.29117552,103020.0,103010.0,0.527694]
[1737456352005,0.33976452,103020.0,103010.0,0.527694]
[1737456352498,0.40550673,103020.0,103010.0,0.527694]
[1737456352700,0.33976452,103020.0,103010.0,0.527694]
[1737456353201,0.22282596,103020.0,103010.0,0.527694]
[1737456353502,0.22282596,103020.0,103010.0,0.59343621]
[1737456353503,0.17423696,103020.0,103010.0,0.59343621]
[1737456355111,0.37450467,103040.0,103030.0,0.048584]
[1737456355414,0.30876246,103040.0,103030.0,0.409384]
[1737456355908,0.31956777,103040.0,103030.0,0.409384]
[1737456356109,0.38530998,103040.0,103030.0,0.3608]
[1737456356408,0.18248712,103040.0,103030.0,0.3608]
[1737456357605,0.18448712,103040.0,103030.0,0.3608]
[1737456359016,0.18448712,103040.0,103030.0,0.409384]
[1737456359204,0.18448712,103040.0,103030.0,0.3608]
[1737456359511,0.18303052,103040.0,103030.0,0.409384]
[1737456360613,0.18303052,103040.0,103030.0,0.3608]
[1737456360904,0.048584,103030.0,103020.0,0.409387]
[1737456361106,0.11432621,103030.0,103020.0,0.409387]
[1737456361706,0.11432621,103030.0,103020.0,0.3608]
[1737456361917,0.048589,103020.0,103010.0,0.527692]
[1737456362122,0.11433121,103020.0,103010.0,0.527692]
[1737456362816,0.048589,103020.0,103010.0,0.527692]
[1737456363310,0.11433121,103020.0,103010.0,0.4791]
[1737456365018,0.11433121,103020.0,103010.0,0.42]
[1737456365201,0.11433121,103020.0,103000.0,0.048596]
[1737456365407,0.048599,103000.0,102990.0,0.75531917]
[1737456365601,0.11434121,103000.0,102990.0,0.75531917]
[1737456365813,0.11434121,103000.0,102990.0,0.80619274]
[1737456366002,0.11434121,103000.0,102990.0,0.75531917]
[1737456366714,0.048599,103000.0,102990.0,0.524801]
[1737456366903,0.36467013,103010.0,102990.0,0.524801]
[1737456367105,0.26117513,103010.0,103000.0,0.47514121]
[1737456367316,0.17117513,103010.0,103000.0,0.47514121]
[1737456367814,0.17117513,103010.0,103000.0,0.52599445]
[1737456368811,0.17217513,103010.0,103000.0,0.62307711]
[1737456369006,0.048587,103030.0,103000.0,0.67167611]
[1737456369208,0.11432921,103030.0,103020.0,0.409389]
[1737456370214,0.11432921,103030.0,103010.0,0.464792]
[1737456370416,0.11433121,103020.0,103010.0,0.464792]
[1737456370615,0.11433121,103020.0,103010.0,0.825592]
[1737456371119,0.048589,103020.0,103010.0,0.825592]
[1737456373423,0.11432921,103030.0,103020.0,0.048589]
[1737456373719,0.048587,103030.0,103020.0,0.409389]
[1737456373932,0.11432921,103030.0,103020.0,0.466389]
[1737456374516,0.048587,103030.0,103020.0,0.466389]
[1737456374815,0.050587,103030.0,103020.0,0.466389]
[1737456375034,0.11732921,103030.0,103020.0,0.466389]
[1737456375626,0.051587,103030.0,103020.0,0.466389]
[1737456376324,0.11732921,103030.0,103020.0,0.466389]
[1737456377226,0.003,103030.0,103020.0,0.466389]
[1737456378024,0.11732621,103030.0,103020.0,0.409389]
[1737456378226,0.17382621,103030.0,103020.0,0.409389]
[1737456379322,0.17382621,103030.0,103020.0,0.468629]
[1737456380228,0.17382621,103030.0,103020.0,0.42004]
[1737456380410,0.53462621,103030.0,103020.0,0.05924]
[1737456380616,0.048594,103010.0,103000.0,0.409396]
[1737456380920,0.11433621,103010.0,103000.0,0.409396]
[1737456381927,0.11433621,103010.0,103000.0,0.411396]
[1737456382820,0.048594,103010.0,103000.0,0.411396]
[1737456383127,0.6571878,103030.0,103010.0,0.048594]
[1737456383329,0.04859,103020.0,103010.0,0.409394]
[1737456383522,0.27923159,103030.0,103020.0,0.048589]
[1737456383738,0.27923159,103030.0,103020.0,0.409389]
[1737456384227,0.3449738,103030.0,103020.0,0.409389]
[1737456384419,0.28023159,103030.0,103020.0,0.409389]
[1737456384616,0.17182821,103030.0,103020.0,0.465789]
[1737456385029,0.17082821,103030.0,103020.0,0.465789]
[1737456385222,0.17182821,103030.0,103020.0,0.465789]
[1737456385622,0.0575,103030.0,103020.0,0.465789]
[1737456386129,0.001,103030.0,103020.0,0.465789]
[1737456386321,0.003,103030.0,103020.0,0.465789]
[1737456386721,0.003,103030.0,103020.0,0.53153121]
[1737456387025,0.003,103030.0,103020.0,0.465789]
[1737456388133,0.11732621,103030.0,103020.0,0.465789]
[1737456388432,0.051584,103030.0,103020.0,0.465789]
[1737456388733,0.11732621,103030.0,103020.0,0.465789]
[1737456388930,0.29183572,103030.0,103020.0,0.465789]
[1737456389134,0.22609351,103030.0,103020.0,0.465789]
[1737456390723,0.22609351,103030.0,103020.0,0.51676064]
[1737456392337,0.22609351,103030.0,103020.0,0.465789]
[1737456395833,0.17750951,103030.0,103020.0,0.465789]
[1737456397641,0.003,103030.0,103020.0,0.465789]
[1737456398541,0.18531482,103040.0,103020.0,0.69433723]
[1737456398843,0.00145618,103050.0,103030.0,0.47512621]
[1737456399034,0.20382286,103060.0,103050.0,0.048575]
[1737456399338,0.20382286,103060.0,103050.0,0.47511721]
[1737456399543,0.31813507,103060.0,103050.0,0.464375]
[1737456399855,0.31813507,103060.0,103050.0,0.409375]
[1737456400531,0.32013507,103060.0,103050.0,0.409375]
[1737456400728,0.32013507,103060.0,103050.0,0.048575]
[1737456402340,0.048575,103050.0,103040.0,0.409378]
[1737456402546,0.11431721,103050.0,103040.0,0.409378]
[1737456403436,0.048575,103050.0,103040.0,0.409378]
[1737456403739,0.049575,103050.0,103040.0,0.409378]
[1737456406645,0.19478875,103050.0,103040.0,0.409378]
[1737456407047,0.24968875,103050.0,103040.0,0.409378]
[1737456409151,0.24968875,103050.0,103040.0,0.47512021]
[1737456409454,0.24968875,103050.0,103040.0,0.409378]
[1737456410652,0.25999267,103050.0,103040.0,0.409378]
[1737456411441,0.14621375,103050.0,103040.0,0.47512021]
[1737456411850,0.14621375,103050.0,103040.0,0.53202021]
[1737456413146,0.19478875,103050.0,103040.0,0.409378]
[1737456413544,0.24948875,103050.0,103040.0,0.409378]
[1737456415849,0.31523096,103050.0,103040.0,0.3608]
[1737456416039,0.24948875,103050.0,103040.0,0.3608]
[1737456416555,0.04858,103040.0,103030.0,0.53012521]
[1737456416847,0.24949075,103050.0,103040.0,0.04858]
[1737456417251,0.104277,103050.0,103040.0,0.04858]
[1737456417751,0.162877,103050.0,103040.0,0.04858]
[1737456418552,0.161877,103050.0,103040.0,0.04858]
[1737456419150,0.17904221,103050.0,103030.0,0.7766]
[1737456419348,0.048585,103030.0,103020.0,0.78657515]
[1737456420048,0.048585,103030.0,103020.0,0.42577515]
[1737456420246,0.048585,103030.0,103020.0,0.78657515]
[1737456421269,0.048585,103030.0,103020.0,0.83759149]
[1737456421755,0.048585,103030.0,103020.0,0.78657515]
[1737456422054,0.050585,103030.0,103020.0,0.78657515]
[1737456422450,0.002,103030.0,103020.0,0.85231736]
[1737456422653,0.0596,103040.0,103030.0,0.048585]
[1737456422654,0.048581,103040.0,103030.0,0.048585]
[1737456422849,0.048581,103040.0,103030.0,0.409385]
[1737456423340,0.1133,103050.0,103030.0,0.42654221]
[1737456423540,0.161878,103050.0,103040.0,0.04858]
[1737456423840,0.22762021,103050.0,103040.0,0.04858]
[1737456424754,0.161878,103050.0,103040.0,0.04858]
[1737456425650,0.163878,103050.0,103040.0,0.04858]
[1737456426156,0.161878,103050.0,103040.0,0.04858]
[1737456426351,0.002,103050.0,103040.0,0.47512221]
[1737456426650,0.002,103050.0,103040.0,0.53262221]
[1737456426854,0.002,103050.0,103040.0,0.46688]
[1737456427053,0.050575,103050.0,103040.0,0.46688]
[1737456427746,0.11631721,103050.0,103040.0,0.40938]
[1737456428058,0.17221721,103050.0,103040.0,0.40938]
[1737456428845,0.34676482,103050.0,103040.0,0.40938]
[1737456429045,0.28102261,103050.0,103040.0,0.40938]
[1737456429248,0.28102261,103050.0,103040.0,0.47512221]
[1737456429443,0.22512261,103050.0,103040.0,0.40938]
[1737456429848,0.22512261,103050.0,103040.0,0.46948]
[1737456430657,0.22512261,103050.0,103040.0,0.40938]
[1737456430859,0.28102261,103050.0,103040.0,0.40938]
[1737456431160,0.34676482,103050.0,103040.0,0.40938]
[1737456432248,0.31029786,103050.0,103040.0,0.40938]
[1737456434057,0.25439786,103050.0,103040.0,0.40938]
[1737456434259,0.25439786,103050.0,103040.0,0.46041474]
[1737456434865,0.25439786,103050.0,103040.0,0.40938]
[1737456437155,0.25439786,103050.0,103040.0,0.46040727]
[1737456437356,0.25439786,103050.0,103040.0,0.40938]
[1737456437760,0.20582286,103050.0,103040.0,0.52615888]
[1737456438066,0.20582286,103050.0,103040.0,0.64755888]
[1737456438962,0.002,103050.0,103040.0,0.64755888]
[1737456439169,0.002,103050.0,103040.0,0.72235888]
[1737456439865,0.050575,103050.0,103040.0,0.72235888]
[1737456440860,0.050575,103050.0,103040.0,0.59691667]
[1737456441267,0.050575,103050.0,103040.0,0.52211667]
[1737456441862,0.11631721,103050.0,103040.0,0.05103667]
[1737456442061,0.04858,103040.0,103030.0,0.72127115]
[1737456442369,0.04858,103040.0,103030.0,0.83806358]
[1737456442670,0.050575,103050.0,103040.0,0.04858]
[1737456442865,0.050575,103050.0,103040.0,0.59262221]
[1737456443461,0.050575,103050.0,103040.0,0.64365838]
[1737456443779,0.22519483,103050.0,103040.0,0.64365838]
[1737456444270,0.22319483,103050.0,103040.0,0.64365838]
[1737456445171,0.22519483,103050.0,103040.0,0.64365838]
[1737456446269,0.17661983,103050.0,103040.0,0.65403614]
[1737456446466,0.20382286,103060.0,103050.0,0.048575]
[1737456446773,0.20382286,103060.0,103050.0,0.65349559]
[1737456447373,0.20382286,103060.0,103050.0,0.58775338]
[1737456447566,0.20582286,103060.0,103050.0,0.58775338]
[1737456448068,0.20582286,103060.0,103050.0,0.64311338]
[1737456448264,0.20582286,103060.0,103050.0,0.80589115]
[1737456448463,0.49499839,103070.0,103060.0,0.04857]
[1737456448663,0.49499839,103070.0,103060.0,0.5260653]
[1737456449067,0.49499839,103070.0,103060.0,0.62310086]
[1737456450869,0.49599839,103070.0,103060.0,0.62310086]
[1737456451066,0.49599839,103070.0,103060.0,0.67846086]
[1737456451266,0.11727853,103070.0,103060.0,1.08194818]
[1737456451768,0.11727853,103070.0,103060.0,1.14154818]
[1737456451969,0.11627853,103070.0,103060.0,1.14154818]
[1737456452275,0.11727853,103070.0,103060.0,1.14154818]
[1737456453066,0.11727853,103070.0,103060.0,1.15157711]
[1737456453675,0.001,103070.0,103060.0,1.17687711]
[1737456453871,0.14534817,103080.0,103060.0,1.17687711]
[1737456454177,0.14534817,103080.0,103070.0,0.47510821]
[1737456455067,0.08701181,103080.0,103070.0,0.47510821]
[1737456456070,0.08701181,103080.0,103070.0,0.57212494]
[1737456456276,0.20494817,103090.0,103080.0,0.048561]
[1737456456478,0.20494817,103090.0,103080.0,0.47510321]
[1737456457078,0.20494817,103090.0,103080.0,0.53410321]
[1737456457282,0.20494817,103090.0,103080.0,0.47510321]
[1737456457575,0.20594817,103090.0,103080.0,0.47510321]
[1737456457986,0.20594817,103090.0,103080.0,0.409361]
[1737456458282,0.20594817,103090.0,103080.0,0.47510321]
[1737456458973,0.14634817,103090.0,103080.0,0.47510321]
[1737456459279,0.14634817,103090.0,103080.0,0.54084542]
[1737456459975,0.001,103090.0,103080.0,0.54084542]
[1737456460678,0.001,103090.0,103080.0,0.47510321]
[1737456461076,0.105456,103090.0,103080.0,0.409361]
[1737456462175,0.105456,103090.0,103070.0,0.72383136]
[1737456462176,0.048561,103080.0,103070.0,0.77239636]
[1737456462373,0.166161,103080.0,103070.0,0.64807636]
[1737456462769,0.166161,103080.0,103070.0,0.78503636]
[1737456463374,0.166161,103080.0,103070.0,0.61206721]
[1737456463776,0.167161,103080.0,103070.0,0.61206721]
[1737456464171,0.167161,103080.0,103070.0,0.49776]
[1737456464371,0.167161,103080.0,103070.0,0.04426]
[1737456464372,0.59370321,103080.0,103070.0,0.04426]
[1737456464572,0.23290321,103080.0,103070.0,0.04426]
[1737456465171,0.59370321,103080.0,103070.0,0.04426]
[1737456465375,0.23290321,103080.0,103070.0,0.04426]
[1737456465581,0.23290321,103080.0,103060.0,0.17296915]
[1737456465782,0.47510821,103070.0,103060.0,0.17296915]
[1737456466083,0.47510821,103070.0,103050.0,0.30869348]
[1737456466084,0.04857,103060.0,103050.0,0.30869348]
[1737456466282,0.47511221,103060.0,103050.0,0.30723817]
[1737456467571,0.47511221,103060.0,103050.0,0.21553817]
[1737456467774,0.048575,103050.0,103040.0,0.63557829]
[1737456467984,0.11431721,103050.0,103040.0,0.63557829]
[1737456468573,0.048585,103030.0,103020.0,0.76533699]
[1737456468784,0.048585,103030.0,103020.0,0.82361699]
[1737456469785,0.048585,103030.0,103020.0,0.82561699]
[1737456470379,0.048585,103030.0,103020.0,0.82961699]
[1737456471979,0.048585,103030.0,103020.0,0.77133699]
[1737456472585,0.048585,103030.0,103020.0,0.54100566]
[1737456473581,0.11432721,103030.0,103020.0,0.00607845]
[1737456474175,0.048585,103030.0,103020.0,0.00607845]
[1737456474986,0.05864944,103030.0,103020.0,0.00607845]
[1737456477288,0.05864944,103030.0,103020.0,0.36687845]
[1737456477788,0.05864944,103030.0,103020.0,0.00607845]
[1737456482094,0.48519165,103030.0,103020.0,0.00607845]
[1737456483385,0.48519165,103030.0,103020.0,0.00207845]
[1737456483590,0.48619165,103030.0,103020.0,0.00207845]
[1737456483789,0.48619165,103030.0,103020.0,7.845e-05]
[1737456485395,0.05964944,103030.0,103020.0,0.36087845]
[1737456485583,0.05964944,103030.0,103020.0,0.42037845]
[1737456486792,0.05964944,103030.0,103020.0,0.05957845]
[1737456486989,0.05964944,103030.0,103020.0,0.53470966]
[1737456487298,0.05964944,103030.0,103020.0,0.46896745]
[1737456488190,0.001,103030.0,103020.0,0.53470966]
[1737456488585,0.14534817,103040.0,103030.0,0.048585]
[1737456488807,0.14534817,103040.0,103030.0,0.53132721]
[1737456488993,0.19392817,103040.0,103030.0,0.465585]
[1737456489294,0.25967038,103040.0,103030.0,0.0562]
[1737456489799,0.19392817,103040.0,103030.0,0.104785]
[1737456490503,0.19492817,103040.0,103030.0,0.0562]
[1737456491197,0.19492817,103040.0,103030.0,0.53132721]
[1737456491701,0.14634817,103040.0,103030.0,0.53132721]
[1737456492102,0.05234817,103040.0,103030.0,0.53132721]
[1737456492304,0.22250419,103050.0,103030.0,0.6283816]
[1737456492598,0.19339432,103050.0,103040.0,0.46798]
[1737456493890,0.19439432,103050.0,103040.0,0.46798]
[1737456495300,0.19439432,103050.0,103040.0,0.52648]
[1737456496397,0.049576,103050.0,103040.0,0.52648]
[1737456496807,0.049576,103050.0,103040.0,0.88728]
[1737456498702,0.049576,103050.0,103040.0,0.8387]
[1737456498703,0.11531821,103050.0,103040.0,0.8387]
[1737456498903,0.11531821,103050.0,103040.0,0.1171]
[1737456499606,0.11531821,103050.0,103040.0,0.0586]
[1737456501310,0.04858,103040.0,103030.0,0.52972]
[1737456501518,0.11432221,103040.0,103030.0,0.11272]
[1737456501816,0.23632221,103040.0,103030.0,0.11272]
[1737456502314,0.048585,103030.0,103020.0,0.65396745]
[1737456504720,0.049585,103030.0,103020.0,0.65396745]
[1737456505413,0.11532721,103030.0,103020.0,0.60537845]
[1737456505620,0.11532721,103030.0,103020.0,0.54697845]
[1737456506116,0.049585,103030.0,103020.0,0.54697845]
[1737456506718,0.11532721,103030.0,103020.0,0.54697845]
[1737456507114,0.049585,103030.0,103020.0,0.54697845]
[1737456507609,0.049585,103030.0,103020.0,0.59556745]